[Event "SS Manhem Chess Week 2022: IM Tournament"]
[Site "Schackcentrum, Vegagatan 20, Gothenburg, Sweden"]
[Date "2022.08.11"]
[Round "8.3"]
[White "Johnson, Daniel"]
[Black "Ingebretsen, Jens E"]
[Result "0-1"]
[TimeControl "90 minutes for 40 moves + 30 minutes for the rest of the game + 30 seconds per move from move one."]
[BlackTitle "FM"]
[WhiteFideId "1721283"]
[BlackFideId "1522965"]
[WhiteElo "2207"]
[BlackElo "2325"]

1. d4 {[%clk 01:30:52]} {[%emt 00:00:03]} Nf6 {[%clk 01:30:56]} {[%emt
00:00:08]} 2. c4 {[%clk 01:31:12]} {[%emt 00:00:11]} e6 {[%clk 01:31:22]}
{[%emt 00:00:04]} 3. Nc3 {[%clk 01:31:36]} {[%emt 00:00:06]} Bb4 {[%clk
01:31:48]} {[%emt 00:00:04]} 4. Qc2 {[%clk 01:31:46]} {[%emt 00:00:19]} O-O
{[%clk 01:32:11]} {[%emt 00:00:07]} 5. Nf3 {[%clk 01:32:03]} {[%emt 00:00:13]}
d5 {[%clk 01:32:04]} {[%emt 00:00:38]} 6. a3 {[%clk 01:30:26]} {[%emt
00:02:06]} Bxc3+ {[%clk 01:32:11]} {[%emt 00:00:24]} 7. Qxc3 {[%clk 01:30:50]}
{[%emt 00:00:06]} b6 {[%clk 01:31:38]} {[%emt 00:01:04]} 8. Bg5 {[%clk
01:30:46]} {[%emt 00:00:33]} Nbd7 {[%clk 01:25:35]} {[%emt 00:06:33]} 9. cxd5
{[%clk 01:24:17]} {[%emt 00:06:59]} exd5 {[%clk 01:25:59]} {[%emt 00:00:06]} 10.
Qc6 {[%clk 01:23:44]} {[%emt 00:01:03]} Ba6 {[%clk 01:21:35]} {[%emt 00:04:54]}
11. e3 {[%clk 01:15:19]} {[%emt 00:08:55]} Bxf1 {[%clk 01:21:37]} {[%emt
00:00:28]} 12. Kxf1 {[%clk 01:15:25]} {[%emt 00:00:24]} Qe7 {[%clk 01:19:19]}
{[%emt 00:02:47]} 13. Ke2 {[%clk 01:09:49]} {[%emt 00:06:06]} Rac8 {[%clk
01:04:09]} {[%emt 00:15:40]} 14. Rhc1 {[%clk 00:58:19]} {[%emt 00:12:01]} Qe4
{[%clk 00:59:03]} {[%emt 00:05:36]} 15. b4 {[%clk 00:51:39]} {[%emt 00:07:10]}
Qf5 {[%clk 00:54:04]} {[%emt 00:05:28]} 16. Bf4 {[%clk 00:34:19]} {[%emt
00:17:50]} Ne4 {[%clk 00:49:15]} {[%emt 00:05:19]} 17. b5 {[%clk 00:25:43]}
{[%emt 00:09:07]} Rfe8 {[%clk 00:46:01]} {[%emt 00:03:44]} 18. Ra2 {[%clk
00:21:14]} {[%emt 00:04:59]} Nf8 {[%clk 00:40:43]} {[%emt 00:05:47]} 19. Rac2
{[%clk 00:16:49]} {[%emt 00:04:55]} Ne6 {[%clk 00:33:04]} {[%emt 00:08:09]} 20.
Be5 {[%clk 00:16:13]} {[%emt 00:01:06]} f6 {[%clk 00:32:28]} {[%emt 00:01:06]}
21. Bg3 {[%emt 00:08:55]} g5 {[%clk 00:31:30]} 22. Kf1 {[%clk 00:06:45]} {[%emt
00:03:01]} h5 {[%clk 00:30:18]} {[%emt 00:01:42]} 23. Qd7 {[%clk 00:00:52]}
{[%emt 00:06:23]} Rcd8 {[%clk 00:28:26]} {[%emt 00:02:23]} 24. Qc6 {[%clk
00:01:08]} {[%emt 00:00:15]} Re7 {[%clk 00:26:22]} {[%emt 00:02:33]} 25. Qb7
{[%clk 00:00:34]} {[%emt 00:01:04]} h4 {[%clk 00:25:51]} {[%emt 00:01:00]} 26.
Bxc7 {[%clk 00:00:32]} {[%emt 00:00:33]} h3 {[%clk 00:25:49]} {[%emt 00:00:31]}
27. Qa6 {[%clk 00:00:31]} {[%emt 00:00:31]} hxg2+ {[%clk 00:25:31]} {[%emt
00:00:48]} 28. Kxg2 {[%clk 00:00:32]} {[%emt 00:00:30]} Nxc7 {[%clk 00:25:22]}
{[%emt 00:00:39]} 29. Rxc7 {[%clk 00:00:32]} {[%emt 00:00:30]} Qg4+ {[%clk
00:25:08]} {[%emt 00:00:44]} 30. Kf1 {[%clk 00:00:37]} {[%emt 00:00:25]} Qxf3
{[%clk 00:25:22]} {[%emt 00:00:16]} 31. R7c2 {[%clk 00:00:31]} {[%emt
00:00:36]} Nxf2 {[%clk 00:24:21]} {[%emt 00:01:30]} 0-1

[Event "SS Manhem Chess Week 2022: IM Tournament"]
[Site "Schackcentrum, Vegagatan 20, Gothenburg, Sweden"]
[Date "2022.08.11"]
[Round "8.4"]
[White "Mitusov, Semen"]
[Black "Jacobsen, Mikkel Manosri"]
[Result "1/2-1/2"]
[TimeControl "90 minutes for 40 moves + 30 minutes for the rest of the game + 30 seconds per move from move one."]
[WhiteTitle "FM"]
[BlackTitle "FM"]
[WhiteFideId "14151049"]
[BlackFideId "1444514"]
[WhiteElo "2415"]
[BlackElo "2320"]

1. e4 {[%clk 01:30:23]} {[%emt 00:00:37]} c6 {[%clk 01:29:35]} {[%emt
00:01:26]} 2. d4 {[%clk 01:30:44]} {[%emt 00:00:09]} d5 {[%clk 01:29:52]}
{[%emt 00:00:13]} 3. e5 {[%clk 01:30:25]} {[%emt 00:00:49]} Bf5 {[%clk
01:30:12]} {[%emt 00:00:10]} 4. Nf3 {[%clk 01:30:24]} {[%emt 00:00:32]} e6
{[%clk 01:30:15]} {[%emt 00:00:26]} 5. Be2 {[%clk 01:30:50]} {[%emt 00:00:04]}
Ne7 {[%clk 01:28:40]} {[%emt 00:02:05]} 6. O-O {[%clk 01:30:52]} {[%emt
00:00:28]} c5 {[%clk 01:28:48]} {[%emt 00:00:22]} 7. Be3 {[%clk 01:25:45]}
{[%emt 00:05:37]} Nbc6 {[%clk 01:23:48]} {[%emt 00:05:30]} 8. dxc5 {[%clk
01:22:19]} {[%emt 00:03:56]} Bg4 {[%clk 01:23:36]} {[%emt 00:00:41]} 9. Bd4
{[%clk 01:18:04]} {[%emt 00:04:46]} Nf5 {[%clk 01:23:57]} {[%emt 00:00:09]} 10.
c3 {[%clk 01:14:01]} {[%emt 00:04:33]} Be7 {[%emt 00:07:54]} 11. Nbd2 {[%clk
01:12:28]} O-O {[%clk 01:18:06]} {[%emt 00:00:58]} 12. h3 {[%clk 01:08:34]}
{[%emt 00:04:25]} Bxf3 {[%clk 01:17:54]} {[%emt 00:00:42]} 13. Nxf3 {[%clk
01:08:38]} {[%emt 00:00:26]} b6 {[%clk 01:03:10]} {[%emt 00:15:14]} 14. cxb6
{[%clk 01:00:53]} {[%emt 00:08:15]} Nfxd4 {[%clk 01:03:06]} {[%emt 00:00:34]}
15. cxd4 {[%clk 00:59:31]} {[%emt 00:01:52]} Qxb6 {[%clk 01:03:28]} {[%emt
00:00:08]} 16. Rc1 {[%clk 00:59:46]} {[%emt 00:00:15]} Rfc8 {[%clk 00:52:27]}
{[%emt 00:11:31]} 17. Qa4 {[%clk 00:50:38]} {[%emt 00:09:38]} Rab8 {[%clk
00:50:27]} {[%emt 00:02:30]} 18. a3 {[%clk 00:41:32]} {[%emt 00:09:36]} Qxb2
{[%clk 00:44:49]} {[%emt 00:06:08]} 19. Rxc6 {[%clk 00:31:17]} {[%emt
00:10:45]} Rxc6 {[%clk 00:44:33]} {[%emt 00:00:46]} 20. Qxc6 {[%clk 00:31:41]}
{[%emt 00:00:06]} Qxe2 {[%clk 00:44:56]} {[%emt 00:00:07]} 21. Qc7 {[%clk
00:31:36]} {[%emt 00:00:35]} Re8 {[%clk 00:45:12]} {[%emt 00:00:14]} 22. Qd7
{[%clk 00:28:53]} {[%emt 00:03:13]} Kf8 {[%clk 00:45:25]} {[%emt 00:00:16]} 23.
Rc1 {[%clk 00:29:19]} {[%emt 00:00:05]} g5 {[%clk 00:39:15]} {[%emt 00:06:39]}
24. a4 {[%clk 00:22:36]} {[%emt 00:07:14]} h5 {[%clk 00:38:15]} {[%emt
00:01:30]} 25. Re1 {[%clk 00:19:16]} {[%emt 00:03:50]} Qd3 {[%clk 00:32:46]}
{[%emt 00:05:57]} 26. Qxa7 {[%clk 00:19:21]} {[%emt 00:00:26]} g4 {[%clk
00:30:44]} {[%emt 00:02:32]} 27. hxg4 {[%clk 00:19:41]} {[%emt 00:00:10]} hxg4
{[%clk 00:31:12]} {[%emt 00:00:02]} 28. Nh2 {[%clk 00:18:23]} {[%emt 00:01:47]}
g3 {[%clk 00:20:44]} {[%emt 00:11:00]} 29. Nf3 {[%clk 00:17:35]} {[%emt
00:01:19]} gxf2+ {[%clk 00:16:55]} {[%emt 00:04:19]} 30. Kxf2 {[%clk 00:18:04]}
Rc8 {[%clk 00:17:16]} {[%emt 00:00:08]} 31. Re2 {[%clk 00:17:31]} {[%emt
00:01:03]} Bb4 {[%clk 00:17:07]} {[%emt 00:00:40]} 32. Qb7 {[%clk 00:17:06]}
{[%emt 00:00:55]} Rc4 {[%clk 00:17:25]} {[%emt 00:00:12]} 33. Qb8+ {[%clk
00:13:32]} {[%emt 00:04:04]} Kg7 {[%clk 00:16:38]} {[%emt 00:01:16]} 34. Qd8
{[%clk 00:13:56]} {[%emt 00:00:07]} Qf5 {[%clk 00:11:41]} {[%emt 00:05:26]} 35.
Ra2 {[%clk 00:11:50]} {[%emt 00:02:36]} Be1+ {[%clk 00:09:06]} {[%emt
00:03:05]} 36. Kf1 {[%clk 00:10:51]} {[%emt 00:01:29]} Bh4 {[%clk 00:08:47]}
{[%emt 00:00:49]} 37. Qxh4 {[%clk 00:10:49]} {[%emt 00:00:33]} Qb1+ {[%clk
00:09:06]} {[%emt 00:00:11]} 38. Ne1 {[%clk 00:10:30]} {[%emt 00:00:49]} Qxa2
{[%clk 00:09:22]} {[%emt 00:00:14]} 39. Qg5+ {[%clk 00:10:37]} {[%emt
00:00:22]} Kf8 {[%clk 00:09:40]} {[%emt 00:00:13]} 40. Qd8+ {[%clk 00:11:02]}
{[%emt 00:00:04]} Kg7 {[%clk 00:10:06]} {[%emt 00:00:04]} 41. Qg5+ {[%clk
00:11:30]} {[%emt 00:00:03]} 1/2-1/2

[Event "SS Manhem Chess Week 2022: IM Tournament"]
[Site "Schackcentrum, Vegagatan 20, Gothenburg, Sweden"]
[Date "2022.08.11"]
[Round "8.5"]
[White "Rydstrom, Tom"]
[Black "Olsson, William"]
[Result "1-0"]
[TimeControl "90 minutes for 40 moves + 30 minutes for the rest of the game + 30 seconds per move from move one."]
[WhiteTitle "FM"]
[BlackTitle "FM"]
[WhiteFideId "1714830"]
[BlackFideId "1741721"]
[WhiteElo "2304"]
[BlackElo "2311"]

1. e4 c5 2. Nf3 d6 3. d4 cxd4 4. Nxd4 Nf6 5. Nc3 g6 6. Be3 Bg7 7. f3 Nc6 8. Qd2
O-O 9. Bc4 Bd7 10. h4 h5 11. O-O-O Rc8 12. Nxc6 Bxc6 13. Bb3 b5 14. Bxa7 Qa5 15.
Bd4 e5 16. Be3 b4 17. Nd5 Nxd5 18. Bxd5 Ba4 19. b3 Bc6 20. a4 Bxa4 21. bxa4
Qxa4 22. c4 bxc3 23. Qa2 Qb5 24. Qb3 Qe2 25. Rhe1 Qxg2 26. Qc2 Qxf3 27. Qe2 Qh3
28. Rg1 Kh7 29. Rgf1 Rc7 30. Rf3 Qd7 31. Rdf1 Qa4 32. Qa2 Qb5 33. Qb3 Qa6 34.
Bxf7 Rb7 35. Qa2 Qd3 36. Qc2 Qa6 37. Qa2 Qd3 38. Qc2 Qa6 39. Qa2 Qd3 40. Bg5
Qxe4 41. Qc2 Qxc2+ 42. Kxc2 Rb2+ 43. Kd3 Rc8 44. Rg3 c2 45. Bc1 e4+ 46. Ke2 Rb7
47. Bxg6+ Kh8 48. Rg5 Bb2 49. Bxe4 Re8 50. Kd3 Bxc1 51. Rxh5+ Kg8 52. Bxb7
{[%clk 01:30:30]} {The game was played in advance on August 5 2022 on a non
electronic board. Clock times are not correct.} 1-0